fUSD/lending_fUSD_20250228
["ID","MTS","AMOUNT","RATE_DAILY","PERIOD"]
[354799749,1740707514937,-167.09062394,0.00056438,120]
[354799750,1740707514946,-1051.75,0.00056438,120]
[354799751,1740707514956,-500.0,0.00056438,120]
[354799752,1740707514966,-500.0,0.00056438,120]
[354799753,1740707514975,-1105.65,0.00056438,120]
[354799754,1740707514984,-199.21160738,0.00056438,120]
[354799755,1740707514994,-500.0,0.00056438,120]
[354799756,1740707515005,-935.9,0.00056438,120]
[354799757,1740707515015,-500.0,0.00056438,120]
[354799758,1740707515025,-500.0,0.00056438,120]
[354799759,1740707515035,-500.0,0.00056438,120]
[354799760,1740707515046,-500.0,0.00056438,120]
[354799761,1740707515055,-500.0,0.00056438,120]
[354799762,1740707515066,-500.0,0.00056438,120]
[354799763,1740707515075,-500.0,0.00056438,120]
[354799764,1740707515085,-1021.57,0.00056438,120]
[354799765,1740707515095,-678.63,0.00056438,120]
[354799766,1740707515105,-847.2,0.00056438,120]
[354799767,1740707515115,-500.0,0.00056438,120]
[354799768,1740707515124,-500.0,0.00056438,120]
[354799769,1740707515134,-568.48039966,0.00056438,120]
[354799770,1740707515143,-927.57,0.00056438,120]
[354799771,1740707515152,-500.0,0.00056438,120]
[354799772,1740707515162,-500.0,0.00056438,120]
[354799773,1740707515171,-500.0,0.00056438,120]
[354799774,1740707515180,-1273.87,0.00056438,120]
[354799775,1740707515189,-500.0,0.00056438,120]
[354799776,1740707515198,-500.0,0.00056438,120]
[354799777,1740707515207,-500.0,0.00056438,120]
[354799778,1740707515216,-762.62,0.00056438,120]
[354799779,1740707515226,-840.01,0.00056438,120]
[354799780,1740707515235,-500.0,0.00056438,120]
[354799781,1740707515244,-539.20516847,0.00056438,120]
[354799782,1740707515253,-547.58738182,0.00056438,120]
[354799783,1740707515262,-500.0,0.00056438,120]
[354799784,1740707515272,-795.43,0.00056438,120]
[354799785,1740707515281,-211.90147404,0.00056438,120]
[354799786,1740707515290,-500.0,0.00056438,120]
[354799787,1740707515299,-500.0,0.00056438,120]
[354799788,1740707515308,-575.37,0.00056438,120]
[354799789,1740707515317,-500.0,0.00056438,120]
[354799790,1740707515327,-500.0,0.00056438,120]
[354799791,1740707515336,-500.0,0.00056438,120]
[354799792,1740707515345,-500.0,0.00056438,120]
[354799793,1740707515355,-695.08,0.00056438,120]
[354799794,1740707515364,-356.89024231,0.00056438,120]
[354799795,1740707515373,-500.0,0.00056438,120]
[354799796,1740707515382,-1111.02,0.00056438,120]
[354799797,1740707515391,-630.34733034,0.00056438,120]
[354799798,1740707515400,-500.0,0.00056438,120]
[354799799,1740707515409,-500.0,0.00056438,120]
[354799800,1740707515419,-500.0,0.00056438,120]
[354799801,1740707515427,-919.96,0.00056438,120]
[354799802,1740707515436,-500.0,0.00056438,120]
[354799803,1740707515445,-288.55510641,0.00056438,120]
[354799804,1740707515455,-500.0,0.00056438,120]
[354799805,1740707515465,-612.37,0.00056438,120]
[354799806,1740707515476,-500.0,0.00056438,120]
[354799807,1740707515487,-639.59,0.00056438,120]
[354799808,1740707515496,-537.87030569,0.00056438,40]
[354799809,1740707515507,-500.0,0.00056438,120]
[354799810,1740707515520,-2029.62,0.00056438,120]
[354799811,1740707515529,-500.0,0.00056438,120]
[354799812,1740707515539,-500.0,0.00056438,120]
[354799813,1740707515550,-500.0,0.00056438,120]
[354799814,1740707515559,-500.0,0.00056438,120]
[354799815,1740707515568,-790.67,0.00056438,120]
[354799816,1740707515577,-1308.82,0.00056438,120]
[354799817,1740707515587,-500.0,0.00056438,120]
[354799818,1740707515596,-551.57,0.00056438,120]
[354799819,1740707515606,-500.0,0.00056438,7]
[354799820,1740707515615,-714.61,0.00056438,120]
[354799821,1740707515624,-745.48,0.00056438,120]
[354799822,1740707515632,-646.72,0.00056438,120]
[354799823,1740707515642,-500.0,0.00056438,120]
[354799824,1740707515652,-500.0,0.00056438,120]
[354799825,1740707515661,-607.43690373,0.00056438,120]
[354799826,1740707515670,-500.0,0.00056438,120]
[354799827,1740707515680,-500.0,0.00056438,120]
[354799828,1740707515690,-1169.82,0.00056438,120]
[354799829,1740707515846,-1510.89,0.00056438,120]
[354799830,1740707515857,-500.0,0.00056438,120]
[354799831,1740707515866,-500.0,0.00056438,120]
[354799832,1740707515876,-500.0,0.00056438,120]
[354799833,1740707515885,-2056.21,0.00056438,120]
[354799834,1740707515895,-521.14804073,0.00056438,120]
[354799835,1740707515905,-500.0,0.00056438,120]
[354799836,1740707515914,-500.0,0.00056438,120]
[354799837,1740707515924,-1119.09,0.00056438,120]
[354799838,1740707515934,-500.0,0.00056438,120]
[354799839,1740707515943,-532.93,0.00056438,120]
[354799840,1740707515952,-500.0,0.00056438,120]
[354799841,1740707515962,-500.0,0.00056438,120]
[354799842,1740707515971,-500.0,0.00056438,120]
[354799843,1740707515980,-729.17,0.00056438,120]
[354799844,1740707515989,-500.0,0.00056438,120]
[354799845,1740707515999,-845.3,0.00056438,120]
[354799846,1740707516008,-500.0,0.00056438,120]
[354799847,1740707516017,-886.83,0.00056438,120]
[354799848,1740707516026,-500.0,0.00056438,120]
[354799849,1740707516035,-650.9,0.00056438,120]
[354799850,1740707516044,-500.0,0.00056438,120]
[354799851,1740707516053,-971.67,0.00056438,120]
[354799852,1740707516063,-500.0,0.00056438,120]
[354799853,1740707516072,-511.14,0.00056438,120]
[354799854,1740707516082,-500.0,0.00056438,120]
[354799855,1740707516091,-500.0,0.00056438,120]
[354799856,1740707516101,-704.59,0.00056438,120]
[354799857,1740707516110,-2271.13,0.00056438,120]
[354799858,1740707516120,-500.0,0.00056438,120]
[354799859,1740707516129,-1000000.0,0.000565,120]
[354799860,1740707516139,-1412.46,0.00056589,120]
[354799861,1740707516148,-1412.46,0.00056589,120]
[354799862,1740707516158,-1300.0,0.00056602,120]
[354799863,1740707516167,-1400.0,0.00056602,120]
[354799864,1740707516177,-2110.0,0.00056664,30]
[354799865,1740707516187,-514.406842,0.00056699,120]
[354799866,1740707516197,-500.0,0.00056712,120]
[354799867,1740707516206,-461.00695169,0.00056712,120]
[354799868,1740707516215,-154.618068,0.00056712,120]
[354799869,1740707516224,-4105.716146,0.00056712,120]
[354799870,1740707516233,-1424.950955,0.00056712,120]
[354799871,1740707516243,-500.0,0.00056712,120]
[354799872,1740707516252,-526.72223767,0.00056712,120]
[354799873,1740707516261,-500.0,0.00056712,120]
[354799874,1740707516271,-500.0,0.00056712,120]
[354799875,1740707516280,-500.0,0.00056712,120]
[354799876,1740707516289,-500.0,0.00056712,120]
[354799877,1740707516299,-500.0,0.00056712,120]
[354799878,1740707516308,-500.0,0.00056712,120]
[354799879,1740707516317,-500.0,0.00056712,120]
[354799880,1740707516327,-500.0,0.00056712,120]
[354799881,1740707516336,-379.0194357,0.00056712,120]
[354799882,1740707516346,-500.0,0.00056712,120]
[354799883,1740707516355,-500.0,0.00056712,120]
[354799884,1740707516365,-500.0,0.00056712,120]
[354799885,1740707516374,-288.58732149,0.00056712,120]
[354799886,1740707516383,-500.0,0.00056712,120]
[354799887,1740707516392,-500.0,0.00056712,120]
[354799888,1740707516402,-500.0,0.00056712,120]
[354799889,1740707516412,-500.0,0.00056712,120]
[354799890,1740707516421,-500.0,0.00056712,120]
[354799891,1740707516431,-543.22785224,0.00056712,120]
[354799892,1740707516440,-435.67297499,0.00056712,120]
[354799893,1740707516454,-500.0,0.00056712,120]
[354799894,1740707516463,-500.0,0.00056712,120]
[354799895,1740707516472,-500.0,0.00056712,120]
[354799896,1740707516482,-500.0,0.00056712,120]
[354799897,1740707516492,-500.0,0.00056712,120]
[354799898,1740707516503,-588.16781985,0.00056712,120]
[354799899,1740707516514,-500.0,0.00056712,120]
[354799900,1740707516524,-500.0,0.00056712,120]
[354799901,1740707516534,-500.0,0.00056712,120]
[354799902,1740707516543,-500.0,0.00056712,120]
[354799903,1740707516554,-500.0,0.00056712,120]
[354799904,1740707516563,-500.0,0.00056712,120]
[354799905,1740707516575,-500.0,0.00056712,120]
[354799906,1740707516585,-500.0,0.00056712,60]
[354799907,1740707516596,-3000.0,0.00056712,120]
[354799908,1740707516606,-521.1535414,0.00056712,120]
[354799909,1740707516615,-500.0,0.00056712,120]
[354799910,1740707516625,-500.0,0.00056712,120]
[354799911,1740707516634,-500.0,0.00056712,120]
[354799912,1740707516644,-509.5848977,0.00056712,120]
[354799913,1740707516653,-500.0,0.00056712,120]
[354799914,1740707516663,-258.989025,0.00056712,120]
[354799915,1740707516672,-516.94053443,0.00056712,120]
[354799916,1740707516682,-500.0,0.00056712,120]
[354799917,1740707516691,-500.0,0.00056712,120]
[354799918,1740707516701,-500.0,0.00056712,120]
[354799919,1740707516710,-500.0,0.00056712,120]
[354799920,1740707516719,-392.06707099,0.00056712,120]
[354799921,1740707516729,-500.0,0.00056712,120]
[354799922,1740707516738,-570.68,0.00056712,120]
[354799923,1740707516747,-500.0,0.00056712,120]
[354799924,1740707516756,-515.5781071,0.00056712,120]
[354799925,1740707516766,-500.0,0.00056712,120]
[354799926,1740707516779,-500.0,0.00056712,120]
[354799927,1740707516788,-500.0,0.00056712,120]
[354799928,1740707516798,-565.14500736,0.00056712,120]
[354799929,1740707516808,-500.0,0.00056712,120]
[354799930,1740707516817,-500.0,0.00056712,120]
[354799931,1740707516827,-509.69,0.00056712,120]
[354799932,1740707516836,-500.0,0.00056712,120]
[354799933,1740707516846,-500.0,0.00056712,120]
[354799934,1740707516855,-500.0,0.00056712,120]
[354799935,1740707516864,-828.19,0.00056712,120]
[354799936,1740707516873,-500.0,0.00056712,120]
[354799937,1740707516883,-500.0,0.00056712,120]
[354799938,1740707516892,-500.0,0.00056712,120]
[354799939,1740707516902,-500.0,0.00056712,120]
[354799940,1740707516911,-500.0,0.00056712,120]
[354799941,1740707516920,-500.0,0.00056712,120]
[354799942,1740707516930,-500.0,0.00056712,120]
[354799943,1740707516939,-500.0,0.00056712,120]
[354799944,1740707516948,-500.0,0.00056712,120]
[354799945,1740707516958,-500.0,0.00056712,120]
[354799946,1740707516967,-500.0,0.00056712,120]
[354799947,1740707516976,-500.0,0.00056712,120]
[354799948,1740707516986,-1852.03,0.00056712,120]
[354799949,1740707516996,-500.0,0.00056712,120]
[354799950,1740707517006,-500.0,0.00056712,120]
[354799951,1740707517015,-500.0,0.00056712,120]
[354799952,1740707517026,-500.0,0.00056712,120]
[354799953,1740707517036,-514.69,0.00056712,120]
[354799954,1740707517045,-500.0,0.00056712,120]
[354799955,1740707517055,-500.0,0.00056712,120]
[354799956,1740707517065,-637.86896731,0.00056712,120]
[354799957,1740707517075,-500.0,0.00056712,120]
[354799958,1740707517084,-500.0,0.00056712,120]
[354799959,1740707517094,-500.0,0.00056712,120]
[354799960,1740707517104,-523.57675839,0.00056712,120]
[354799961,1740707517114,-500.0,0.00056712,120]
[354799962,1740707517123,-500.0,0.00056712,120]
[354799963,1740707517132,-500.0,0.00056712,120]
[354799964,1740707517142,-500.0,0.00056712,120]
[354799965,1740707517152,-500.0,0.00056712,120]
[354799966,1740707517161,-500.0,0.00056712,120]
[354799967,1740707517171,-500.0,0.00056712,120]
[354799968,1740707517180,-500.0,0.00056712,120]
[354799969,1740707517190,-500.0,0.00056712,120]
[354799970,1740707517199,-500.0,0.00056712,120]
[354799971,1740707517209,-500.0,0.00056712,120]
[354799972,1740707517218,-500.0,0.00056712,120]
[354799973,1740707517228,-500.0,0.00056712,120]
[354799974,1740707517237,-500.0,0.00056712,120]
[354799975,1740707517246,-500.0,0.00056712,120]
[354799976,1740707517256,-511.56,0.00056712,120]
[354799977,1740707517265,-500.0,0.00056712,120]
[354799978,1740707517276,-500.0,0.00056712,120]
[354799979,1740707517286,-500.0,0.00056712,120]
[354799980,1740707517295,-500.0,0.00056712,120]
[354799981,1740707517305,-500.0,0.00056712,120]
[354799982,1740707517315,-500.0,0.00056712,2]
[354799983,1740707517325,-536.37447806,0.00056712,120]
[354799984,1740707517334,-500.0,0.00056712,120]
[354799985,1740707517344,-500.0,0.00056712,120]
[354799986,1740707517353,-500.0,0.00056712,120]
[354799987,1740707517363,-500.0,0.00056712,120]
[354799988,1740707517372,-500.0,0.00056712,120]
[354799989,1740707517382,-500.0,0.00056712,120]
[354799990,1740707517392,-500.0,0.00056712,120]
[354799991,1740707517401,-500.0,0.00056712,120]
[354799992,1740707517412,-500.0,0.00056712,120]
[354799993,1740707517422,-241.82447468,0.00056712,120]
[354799994,1740707517432,-500.0,0.00056712,120]
[354799995,1740707517443,-500.0,0.00056712,120]
[354799996,1740707517453,-500.0,0.00056712,120]
[354799997,1740707517463,-500.0,0.00056712,120]
[354799998,1740707517473,-500.0,0.00056712,120]
[354799999,1740707517482,-500.0,0.00056712,120]
[354800000,1740707517492,-500.0,0.00056712,120]
[354800001,1740707517502,-500.0,0.00056712,120]
[354800002,1740707517515,-500.0,0.00056712,120]
[354800003,1740707517526,-500.0,0.00056712,120]
[354800004,1740707517535,-500.0,0.00056712,30]
[354800005,1740707517546,-522.61865259,0.00056712,120]
[354800006,1740707517557,-500.0,0.00056712,120]
[354800007,1740707517566,-416.18393994,0.00056712,120]
[354800008,1740707517576,-500.0,0.00056712,120]
[354800009,1740707517586,-500.0,0.00056712,120]
[354800010,1740707517599,-500.0,0.00056712,120]
[354800011,1740707517608,-500.0,0.00056712,120]
[354800012,1740707517618,-500.0,0.00056712,120]
[354800013,1740707517627,-500.0,0.00056712,120]
[354800014,1740707517638,-500.0,0.00056712,120]
[354800015,1740707517647,-500.0,0.00056712,120]
[354800016,1740707517657,-500.0,0.00056712,120]
[354800017,1740707517667,-395.94307512,0.00056712,120]
[354800018,1740707517677,-500.0,0.00056712,120]
[354800019,1740707517687,-500.0,0.00056712,120]
[354800020,1740707517697,-500.0,0.00056712,120]
[354800021,1740707517708,-538.71948836,0.00056712,120]
[354800022,1740707517718,-500.0,0.00056712,120]
[354800023,1740707517729,-228.92201621,0.00056712,120]
[354800024,1740707517740,-500.0,0.00056712,120]
[354800025,1740707517752,-383.21244407,0.00056712,120]
[354800026,1740707517763,-551.51,0.00056712,120]
[354800027,1740707517775,-500.0,0.00056712,120]
[354800028,1740707517785,-500.0,0.00056712,120]
[354800029,1740707517795,-500.0,0.00056712,120]
[354800030,1740707517804,-1099.38,0.00056712,120]
[354800031,1740707517814,-552.90340169,0.00056712,120]
[354800032,1740707517823,-500.0,0.00056712,120]
[354800033,1740707517833,-500.0,0.00056712,120]
[354800034,1740707517842,-500.0,0.00056712,120]
[354800035,1740707517851,-500.0,0.00056712,120]
[354800036,1740707517861,-539.97601252,0.00056712,120]
[354800037,1740707517870,-500.0,0.00056712,120]
[354800038,1740707517879,-500.0,0.00056712,120]
[354800039,1740707517888,-500.0,0.00056712,120]
[354800040,1740707517897,-500.0,0.00056712,120]
[354800041,1740707517906,-500.0,0.00056712,120]
[354800042,1740707517915,-500.0,0.00056712,120]
[354800043,1740707517924,-549.53729807,0.00056712,120]
[354800044,1740707517934,-500.0,0.00056712,120]
[354800045,1740707517943,-500.0,0.00056712,120]
[354800046,1740707517953,-500.0,0.00056712,120]
[354800047,1740707517962,-500.0,0.00056712,120]
[354800048,1740707517971,-500.0,0.00056712,120]
[354800049,1740707517980,-500.0,0.00056712,120]
[354800050,1740707517990,-1641.04,0.00056712,120]
[354800051,1740707517999,-500.0,0.00056712,120]
[354800052,1740707518009,-500.0,0.00056712,120]
[354800053,1740707518018,-759.23,0.00056712,120]
[354800054,1740707518030,-552.91468535,0.00056712,120]
[354800055,1740707518039,-500.0,0.00056712,120]
[354800056,1740707518048,-543.22933898,0.00056712,120]
[354800057,1740707518058,-500.0,0.00056712,120]
[354800058,1740707518067,-517.69383782,0.00056712,120]
[354800059,1740707518076,-585.19,0.00056712,120]
[354800060,1740707518086,-500.0,0.00056712,120]
[354800061,1740707518095,-509.82,0.00056712,120]
[354800062,1740707518104,-500.0,0.00056712,20]
[354800063,1740707518114,-500.0,0.00056712,120]
[354800064,1740707518123,-500.0,0.00056712,120]
[354800065,1740707518132,-382.27034653,0.00056712,120]
[354800066,1740707518142,-500.0,0.00056712,120]
[354800067,1740707518152,-500.0,0.00056712,120]
[354800068,1740707518162,-500.0,0.00056712,120]
[354800069,1740707518172,-578.23,0.00056712,120]
[354800070,1740707518182,-530.22,0.00056712,120]
[354800071,1740707518192,-509.64,0.00056712,120]
[354800072,1740707518201,-300.0,0.00056712,120]
[354800073,1740707518210,-634.90138125,0.00056712,120]
[354800074,1740707518219,-500.0,0.00056712,120]
[354800075,1740707518229,-500.0,0.00056712,120]
[354800076,1740707518239,-500.0,0.00056712,120]
[354800077,1740707518248,-500.0,0.00056712,120]
[354800078,1740707518258,-500.0,0.00056712,120]
[354800079,1740707518268,-587.4,0.00056712,120]
[354800080,1740707518278,-500.0,0.00056712,120]
[354800081,1740707518289,-500.0,0.00056712,120]
[354800082,1740707518298,-596.70589979,0.00056712,120]
[354800083,1740707518308,-500.0,0.00056712,120]
[354800084,1740707518317,-500.0,0.00056712,120]
[354800085,1740707518327,-500.0,0.00056712,120]
[354800086,1740707518337,-293.24889447,0.00056712,120]
[354800087,1740707518346,-500.0,0.00056712,120]
[354800088,1740707518355,-500.0,0.00056712,120]
[354800089,1740707518365,-500.0,0.00056712,120]
[354800090,1740707518374,-500.0,0.00056712,120]
[354800091,1740707518384,-500.0,0.00056712,120]
[354800092,1740707518394,-500.0,0.00056712,120]
[354800093,1740707518403,-200.64961841,0.00056712,120]
[354800094,1740707518413,-500.0,0.00056712,120]
[354800095,1740707518422,-500.0,0.00056712,120]
[354800096,1740707518432,-500.0,0.00056712,120]
[354800097,1740707518442,-500.0,0.00056712,120]
[354800098,1740707518451,-500.0,0.00056712,120]
[354800099,1740707518460,-500.0,0.00056712,120]
[354800100,1740707518469,-600.42,0.00056712,120]
[354800101,1740707518479,-500.0,0.00056712,120]
[354800102,1740707518488,-322.69644338,0.00056712,120]
[354800103,1740707518497,-624.93893899,0.00056712,120]
[354800104,1740707518508,-259.64330557,0.00056712,120]
[354800105,1740707518519,-500.0,0.00056712,120]
[354800106,1740707518530,-500.0,0.00056712,120]
[354800107,1740707518676,-500.0,0.00056712,120]
[354800108,1740707518686,-500.0,0.00056712,120]
[354800109,1740707518696,-951.38,0.00056712,2]
[354800110,1740707518705,-630.94,0.00056712,120]
[354800111,1740707518714,-500.0,0.00056712,120]
[354800112,1740707518724,-322.54403659,0.00056712,120]
[354800113,1740707518734,-1478.07,0.00056712,120]
[354800114,1740707518743,-594.92,0.00056712,120]
[354800115,1740707518752,-500.0,0.00056712,120]
[354800116,1740707518762,-768.84,0.00056712,120]
[354800117,1740707518772,-500.0,0.00056712,120]
[354800118,1740707518784,-500.0,0.00056712,120]
[354800119,1740707518794,-500.0,0.00056712,120]
[354800120,1740707518803,-500.0,0.00056712,120]
[354800121,1740707518813,-1119.62,0.00056712,120]
[354800122,1740707518822,-580.73,0.00056712,120]
[354800123,1740707518832,-517.91,0.00056712,120]
[354800124,1740707518841,-161.39730753,0.00056712,120]
[354800125,1740707518851,-542.1658234,0.00056712,120]
[354800126,1740707518860,-1543.06,0.00056712,120]
[354800127,1740707518870,-521.01901724,0.00056712,120]
[354800128,1740707518879,-546.98534376,0.00056712,120]
[354800129,1740707518888,-500.0,0.00056712,120]
[354800130,1740707518897,-533.37,0.00056712,120]
[354800131,1740707518906,-500.0,0.00056712,120]
[354800132,1740707518916,-500.0,0.00056712,120]
[354800133,1740707518925,-500.0,0.00056712,120]
[354800134,1740707518935,-500.0,0.00056712,120]
[354800135,1740707518944,-1220.35,0.00056712,120]
[354800136,1740707518953,-744.65,0.00056712,120]
[354800137,1740707518962,-607.33810504,0.00056712,120]
[354800138,1740707518971,-500.0,0.00056712,120]
[354800139,1740707518981,-1028.04,0.00056712,120]
[354800140,1740707518990,-500.0,0.00056712,120]
[354800141,1740707519000,-500.0,0.00056712,120]
[354800142,1740707519013,-500.0,0.00056712,120]
[354800143,1740707519023,-500.0,0.00056712,120]
[354800144,1740707519034,-500.0,0.00056712,30]
[354800145,1740707519044,-1097.3,0.00056712,120]
[354800146,1740707519053,-500.0,0.00056712,120]
[354800147,1740707519062,-500.0,0.00056712,120]
[354800148,1740707519071,-949.11,0.00056712,120]
[354800149,1740707519081,-879.55,0.00056712,120]
[354800150,1740707519093,-500.0,0.00056712,120]
[354800151,1740707519102,-526.49,0.00056712,120]
[354800152,1740707519112,-500.0,0.00056712,120]
[354800153,1740707519124,-828.91,0.00056712,120]
[354800154,1740707519134,-500.0,0.00056712,120]
[354800155,1740707519144,-814.83,0.00056712,120]
[354800156,1740707519153,-517.4,0.00056712,120]
[354800157,1740707519163,-852.06,0.00056712,120]
[354800158,1740707519173,-500.0,0.00056712,120]
[354800159,1740707519183,-528.62700957,0.00056712,120]
[354800160,1740707519193,-1009.91,0.00056712,120]
[354800161,1740707519202,-730.96,0.00056712,120]
[354800162,1740707519211,-500.0,0.00056712,120]
[354800163,1740707519221,-531.23678712,0.00056712,120]
[354800164,1740707519231,-1151.75,0.00056712,120]
[354800165,1740707519241,-368.43076165,0.00056712,120]
[354800166,1740707519251,-500.0,0.00056712,120]
[354800167,1740707519260,-500.0,0.00056712,120]
[354800168,1740707519271,-320.01119658,0.00056712,120]
[354800169,1740707519284,-500.0,0.00056712,120]
[354800170,1740707519293,-500.0,0.00056712,120]
[354800171,1740707519303,-893.14,0.00056712,120]
[354800172,1740707519312,-885.88,0.00056712,120]
[354800173,1740707519322,-377.49331345,0.00056712,120]
[354800174,1740707519331,-500.0,0.00056712,120]
[354800175,1740707519340,-566.69,0.00056712,120]
[354800176,1740707519349,-504.0,0.00056712,120]
[354800177,1740707519358,-500.0,0.00056712,120]
[354800178,1740707519368,-710.67,0.00056712,120]
[354800179,1740707519378,-726.03,0.00056712,120]
[354800180,1740707519387,-368.82900726,0.00056712,120]
[354800181,1740707519396,-1292.45,0.00056712,100]
[354800182,1740707519406,-500.0,0.00056712,120]
[354800183,1740707519415,-500.0,0.00056712,120]
[354800184,1740707519424,-715.56,0.00056712,120]
[354800185,1740707519433,-500.0,0.00056712,120]
[354800186,1740707519443,-500.0,0.00056712,120]
[354800187,1740707519451,-500.0,0.00056712,120]
[354800188,1740707519460,-500.0,0.00056712,120]
[354800189,1740707519470,-500.0,0.00056712,120]
[354800190,1740707519479,-500.0,0.00056712,120]
[354800191,1740707519488,-516.93,0.00056712,120]
[354800192,1740707519497,-500.0,0.00056712,120]
[354800193,1740707519509,-951.24,0.00056712,120]
[354800194,1740707519521,-741.74,0.00056712,120]
[354800195,1740707519535,-2076.3,0.00056712,120]
[354800196,1740707519544,-500.0,0.00056712,120]
[354800197,1740707519554,-500.0,0.00056712,120]
[354800198,1740707519563,-500.0,0.00056712,120]
[354800199,1740707519572,-500.0,0.00056712,120]
[354800200,1740707519581,-608.51,0.00056712,120]
[354800201,1740707519591,-500.0,0.00056712,120]
[354800202,1740707519601,-1051.75,0.00056712,120]
[354800203,1740707519611,-500.0,0.00056712,120]
[354800204,1740707519621,-500.0,0.00056712,120]
[354800205,1740707519631,-1105.65,0.00056712,120]
[354800206,1740707519640,-500.0,0.00056712,120]
[354800207,1740707519650,-935.9,0.00056712,120]
[354800208,1740707519659,-181.22038265,0.00056712,120]
[354800209,1740707519668,-500.0,0.00056712,120]
[354800210,1740707519677,-500.0,0.00056712,120]
[354800211,1740707519687,-500.0,0.00056712,120]
[354800212,1740707519696,-500.0,0.00056712,120]
[354800213,1740707519706,-500.0,0.00056712,120]
[354800214,1740707519716,-500.0,0.00056712,120]
[354800215,1740707519725,-1021.57,0.00056712,120]
[354800216,1740707519734,-678.63,0.00056712,120]
[354800217,1740707519743,-847.2,0.00056712,120]
[354800218,1740707519752,-500.0,0.00056712,120]
[354800219,1740707519761,-500.0,0.00056712,120]
[354800220,1740707519771,-927.57,0.00056712,120]
[354800221,1740707519782,-500.0,0.00056712,120]
[354800222,1740707519791,-500.0,0.00056712,120]
[354800223,1740707519801,-500.0,0.00056712,120]
[354800224,1740707519810,-1273.87,0.00056712,120]
[354800225,1740707519819,-500.0,0.00056712,120]
[354800226,1740707519828,-500.0,0.00056712,120]
[354800227,1740707519837,-150.66676198,0.00056712,120]
[354800228,1740707519847,-762.62,0.00056712,120]
[354800229,1740707519856,-840.01,0.00056712,120]
[354800230,1740707519865,-587.07902058,0.00056712,120]
[354800231,1740707519875,-500.0,0.00056712,120]
[354800232,1740707519884,-795.43,0.00056712,120]
[354800233,1740707519893,-500.0,0.00056712,120]
[354800234,1740707519903,-520.02215091,0.00056712,120]
[354800235,1740707519913,-575.37,0.00056712,120]
[354800236,1740707519923,-500.0,0.00056712,120]
[354800237,1740707519932,-500.0,0.00056712,120]
[354800238,1740707519942,-500.0,0.00056712,120]
[354800239,1740707519951,-500.0,0.00056712,120]
[354800240,1740707519961,-695.08,0.00056712,120]
[354800241,1740707519971,-500.0,0.00056712,120]
[354800242,1740707519980,-1111.02,0.00056712,120]
[354800243,1740707519989,-454.13940218,0.00056712,120]
[354800244,1740707519999,-500.0,0.00056712,120]
[354800245,1740707520008,-500.0,0.00056712,120]
[354800246,1740707520017,-919.96,0.00056712,120]
[354800247,1740707520026,-500.0,0.00056712,120]
[354800248,1740707520036,-500.0,0.00056712,120]